Workbook

Sheet Cover
C13: FX Interpolation
C15: Andrew McSween
C16: =TODAY() -> 2022-01-27

Sheet Curve
D2: FX Interpolator | P2: *Expirations that do not trade are using interpolated prices
V3: Currency: | W3: EUR | Y3: Currency | Z3: Description | AA3: 1 PIP
D4: Raw Data | J4: Implied Prices | Y4: AUD | Z4: Australian Dollar | AA4: 0.0001
C5: Term | D5: Symbol | E5: Bid | F5: Ask | G5: Last | H5: Last Trade Time | I5: Recent | J5: Bid | K5: Ask | L5: Mid | M5: Date | N5: T + | Y5: CAD | Z5: Canadian Dollar | AA5: 0.0001
A6: =N6 -> 0 | C6: Cash | D6: =RTD("esrtd",,$W$3&" A0-FX","Symbol") -> EUR A0-FX | E6: =RTD("esrtd",,D6,"Bid") -> 1.1144 | F6: =RTD("esrtd",,D6,"Ask") -> 1.11444 | G6: =RTD("esrtd",,D6,"Last") -> 1.1144 | H6: =RTD("esrtd",,D6,"Last Trade Time") -> 44588.66052 | I6: =RTD("esrtd",,D6,"Recent") -> 1.1144 | J6: =E6 -> 1.1144 | K6: =F6 -> 1.11444 | L6: =(K6-J6)/2+J6 -> 1.11442 | M6: =TODAY() -> 2022-01-27 | N6: =M6-TODAY() -> 0 | Y6: CHF | Z6: Swiss Franc | AA6: 0.0001
A7: =N7 -> 4 | C7: Spot | D7: =RTD("esrtd",,$W$3&" A2-FX","Symbol") -> EUR A2-FX | E7: =RTD("esrtd",,D7,"Bid") -> 0.601 | F7: =RTD("esrtd",,D7,"Ask") -> 0.641 | G7: =RTD("esrtd",,D7,"Last") -> 0.601 | H7: =RTD("esrtd",,D7,"Last Trade Time") -> 44588.66039 | I7: =RTD("esrtd",,D7,"Recent") -> 0.601 | J7: =IFERROR(J$6+(E7*(VLOOKUP($W$3,$Y$4:$AA$19,3,FALSE))),(J6+J8)/2) -> 1.1144601 | K7: =IFERROR(K$6+(F7*(VLOOKUP($W$3,$Y$4:$AA$19,3,FALSE))),(K6+K8)/2) -> 1.1145041 | L7: =IFERROR((K7-J7)/2+J7,#N/A) -> 1.1144821 | M7: =WORKDAY(WORKDAY(M6+2,-1),1) -> 2022-01-31 | N7: =M7-TODAY() -> 4 | Y7: CZK | Z7: Czech Koruna | AA7: 0.001
A8: 11 | C8: Week 1 | D8: =RTD("esrtd",,$W$3&" w1-FX","Symbol") -> EUR W1-FX | E8: =RTD("esrtd",,D8,"Bid") -> 1.53 | F8: =RTD("esrtd",,D8,"Ask") -> 1.58 | G8: =RTD("esrtd",,D8,"Last") -> 1.53 | H8: =RTD("esrtd",,D8,"Last Trade Time") -> 44588.65979 | I8: =RTD("esrtd",,D8,"Recent") -> 1.53 | J8: =IFERROR(J$6+(E8*(VLOOKUP($W$3,$Y$4:$AA$19,3,FALSE))),(J7+J9)/2) -> 1.114553 | K8: =IFERROR(K$6+(F8*(VLOOKUP($W$3,$Y$4:$AA$19,3,FALSE))),(K7+K9)/2) -> 1.114598 | L8: =IFERROR((K8-J8)/2+J8,#N/A) -> 1.1145755 | M8: =WORKDAY(WORKDAY(M6+9,-1),1) -> 2022-02-07 | N8: 11 | Y8: EUR | Z8: Euro | AA8: 0.0001
A9: 18 | C9: Week 2 | D9: =RTD("esrtd",,$W$3&" w2-FX","Symbol") -> EUR W2-FX | E9: =RTD("esrtd",,D9,"Bid") -> 3.1 | F9: =RTD("esrtd",,D9,"Ask") -> 3.15 | G9: =RTD("esrtd",,D9,"Last") -> 3.1 | H9: =RTD("esrtd",,D9,"Last Trade Time") -> 44588.66043 | I9: =RTD("esrtd",,D9,"Recent") -> 3.1 | J9: 1.11471 | K9: =IFERROR(K$6+(F9*(VLOOKUP($W$3,$Y$4:$AA$19,3,FALSE))),(K8+K10)/2) -> 1.114755 | L9: 1.1147325 | M9: =WORKDAY(WORKDAY(M6+16,-1),1) -> 2022-02-14 | N9: 18 | Y9: GBP | Z9: British Pound | AA9: 0.0001
A10: 25 | C10: Week 3 | D10: =RTD("esrtd",,$W$3&" w3-FX","Symbol") -> EUR W3-FX | E10: =RTD("esrtd",,D10,"Bid") -> 4.77 | F10: =RTD("esrtd",,D10,"Ask") -> 4.89 | G10: =RTD("esrtd",,D10,"Last") -> 4.77 | H10: =RTD("esrtd",,D10,"Last Trade Time") -> 44588.65979 | I10: =RTD("esrtd",,D10,"Recent") -> 4.77 | J10: 1.114877 | K10: 1.114929 | L10: 1.114903 | M10: =WORKDAY(WORKDAY(M6+23,-1),1) -> 2022-02-21 | N10: 25 | P10: Date | Q10: T + | R10: Update | Y10: HKD | Z10: Hong Kong Dollar | AA10: 0.0001
A11: 32 | C11: Month 1 | D11: =RTD("esrtd",,$W$3&" m1-FX","Symbol") -> EUR M1-FX | E11: =RTD("esrtd",,D11,"Bid") -> 6.13 | F11: =RTD("esrtd",,D11,"Ask") -> 6.33 | G11: =RTD("esrtd",,D11,"Last") -> 6.13 | H11: =RTD("esrtd",,D11,"Last Trade Time") -> 44588.66032 | I11: =RTD("esrtd",,D11,"Recent") -> 6.13 | J11: 1.115013 | K11: 1.115073 | L11: 1.115043 | M11: =IF(MONTH(WORKDAY(WORKDAY(EDATE(M$6,$AC12),-1),1))-MONTH(M$6)>1,WORKDAY(EOMONTH(M$6,0)+1,-1),WORKDAY(WORKDAY(EDATE(M$6,$AC12),-1),1)) -> 2022-02-28 | N11: 32 | P11: 2020-02-02 | Q11: 388 | R11: 43475.57297 | Y11: HUF | Z11: Hungarian Forint | AA11: 0.01
A12: 60 | C12: Month 2 | D12: =RTD("esrtd",,$W$3&" m2-FX","Symbol") -> EUR M2-FX | E12: =RTD("esrtd",,D12,"Bid") -> 14.37 | F12: =RTD("esrtd",,D12,"Ask") -> 14.59 | G12: =RTD("esrtd",,D12,"Last") -> 14.37 | H12: =RTD("esrtd",,D12,"Last Trade Time") -> 44588.65979 | I12: =RTD("esrtd",,D12,"Recent") -> 14.37 | J12: 1.115837 | K12: 1.115899 | L12: 1.115868 | M12: =IF(MONTH(WORKDAY(WORKDAY(EDATE(M$6,$AC13),-1),1))-MONTH(M11)>1,WORKDAY(EOMONTH(M11,1)+1,-1),WORKDAY(WORKDAY(EDATE(M$6,$AC13),-1),1)) -> 2022-03-28 | N12: 60 | P12: Bid | Q12: Ask | R12: Mid | Y12: INR | Z12: Indian Rupee | AA12: 0.001 | AC12: 1
A13: 90 | C13: Month 3 | D13: =RTD("esrtd",,$W$3&" m3-FX","Symbol") -> EUR M3-FX | E13: =RTD("esrtd",,D13,"Bid") -> 24.09 | F13: =RTD("esrtd",,D13,"Ask") -> 24.34 | G13: =RTD("esrtd",,D13,"Last") -> 24.09 | H13: =RTD("esrtd",,D13,"Last Trade Time") -> 44588.66042 | I13: =RTD("esrtd",,D13,"Recent") -> 24.09 | J13: 1.116809 | K13: 1.116874 | L13: 1.1168415 | M13: 2022-04-27 | N13: 90 | P13: 1.192069401 | Q13: 1.19255594 | R13: 1.19231267 | Y13: JPY | Z13: Japanese Yen | AA13: 0.01 | AC13: 2
A14: 120 | C14: Month 4 | D14: =RTD("esrtd",,$W$3&" m4-FX","Symbol") -> EUR M4-FX | E14: =RTD("esrtd",,D14,"Bid") -> 35.78 | F14: =RTD("esrtd",,D14,"Ask") -> 36.28 | G14: =RTD("esrtd",,D14,"Last") -> 35.78 | H14: =RTD("esrtd",,D14,"Last Trade Time") -> 44588.65998 | I14: =RTD("esrtd",,D14,"Recent") -> 35.78 | J14: 1.117978 | K14: 1.118068 | L14: 1.118023 | M14: 2022-05-27 | N14: 120 | Y14: MXN | Z14: Mexican Peso | AA14: 0.0001 | AC14: 3
A15: 151 | C15: Month 5 | D15: =RTD("esrtd",,$W$3&" m5-FX","Symbol") -> EUR M5-FX | E15: =RTD("esrtd",,D15,"Bid") -> 47.82 | F15: =RTD("esrtd",,D15,"Ask") -> 48.36 | G15: =RTD("esrtd",,D15,"Last") -> 47.82 | H15: =RTD("esrtd",,D15,"Last Trade Time") -> 44588.65979 | I15: =RTD("esrtd",,D15,"Recent") -> 47.82 | J15: 1.119182 | K15: 1.119276 | L15: 1.119229 | M15: 2022-06-27 | N15: 151 | Y15: NZD | Z15: New Zealand Dollar | AA15: 0.0001 | AC15: 4
A16: 181 | C16: Month 6 | D16: =RTD("esrtd",,$W$3&" m6-FX","Symbol") -> EUR M6-FX | E16: =RTD("esrtd",,D16,"Bid") -> 60.95 | F16: =RTD("esrtd",,D16,"Ask") -> 61.75 | G16: =RTD("esrtd",,D16,"Last") -> 60.95 | H16: =RTD("esrtd",,D16,"Last Trade Time") -> 44588.66042 | I16: =RTD("esrtd",,D16,"Recent") -> 60.95 | J16: 1.120495 | K16: 1.120615 | L16: 1.120555 | M16: 2022-07-27 | N16: 181 | Y16: PLN | Z16: Polish Zloty | AA16: 0.0001 | AC16: 5
A17: 214 | C17: Month 7 | D17: =RTD("esrtd",,$W$3&" m7-FX","Symbol") -> EUR M7-FX | E17: =RTD("esrtd",,D17,"Bid") -> 75.84 | F17: =RTD("esrtd",,D17,"Ask") -> 79.34 | G17: =RTD("esrtd",,D17,"Last") -> 75.84 | H17: =RTD("esrtd",,D17,"Last Trade Time") -> 44588.66051 | I17: =RTD("esrtd",,D17,"Recent") -> 75.84 | J17: 1.121984 | K17: 1.122374 | L17: 1.122179 | M17: 2022-08-29 | N17: 214 | Y17: SGD | Z17: Singapore Dollar | AA17: 0.0001 | AC17: 6
A18: 243 | C18: Month 8 | D18: =RTD("esrtd",,$W$3&" m8-FX","Symbol") -> EUR M8-FX | E18: =RTD("esrtd",,D18,"Bid") -> 89.99 | F18: =RTD("esrtd",,D18,"Ask") -> 92.19 | G18: =RTD("esrtd",,D18,"Last") -> 89.99 | H18: =RTD("esrtd",,D18,"Last Trade Time") -> 44588.66052 | I18: =RTD("esrtd",,D18,"Recent") -> 89.99 | J18: 1.123399 | K18: 1.123659 | L18: 1.123529 | M18: 2022-09-27 | N18: 243 | Y18: THB | Z18: Thai Baht | AA18: 0.01 | AC18: 7
A19: 273 | C19: Month 9 | D19: =RTD("esrtd",,$W$3&" m9-FX","Symbol") -> EUR M9-FX | E19: =RTD("esrtd",,D19,"Bid") -> 106.24 | F19: =RTD("esrtd",,D19,"Ask") -> 108.74 | G19: =RTD("esrtd",,D19,"Last") -> 106.24 | H19: =RTD("esrtd",,D19,"Last Trade Time") -> 44588.66051 | I19: =RTD("esrtd",,D19,"Recent") -> 106.24 | J19: 1.125024 | K19: 1.125314 | L19: 1.125169 | M19: 2022-10-27 | N19: 273 | Y19: ZAR | Z19: South African Rand | AA19: 0.0001 | AC19: 8
A20: 305 | C20: Month 10 | D20: =RTD("esrtd",,$W$3&" N0-FX","Symbol") -> EUR N0-FX | E20: =RTD("esrtd",,D20,"Bid") -> 121.9 | F20: =RTD("esrtd",,D20,"Ask") -> 126.9 | G20: =RTD("esrtd",,D20,"Last") -> 121.9 | H20: =RTD("esrtd",,D20,"Last Trade Time") -> 44588.66051 | I20: =RTD("esrtd",,D20,"Recent") -> 121.9 | J20: 1.12659 | K20: 1.12713 | L20: 1.12686 | M20: 2022-11-28 | N20: 305 | AC20: 9
A21: 334 | C21: Month 11 | D21: =RTD("esrtd",,$W$3&" N1-FX","Symbol") -> EUR N1-FX | E21: =RTD("esrtd",,D21,"Bid") -> 138.07 | F21: =RTD("esrtd",,D21,"Ask") -> 143.57 | G21: =RTD("esrtd",,D21,"Last") -> 138.07 | H21: =RTD("esrtd",,D21,"Last Trade Time") -> 44588.66051 | I21: =RTD("esrtd",,D21,"Recent") -> 138.07 | J21: 1.128207 | K21: 1.128797 | L21: 1.128502 | M21: 2022-12-27 | N21: 334 | AC21: 10
A22: 365 | C22: Year 1 | D22: =RTD("esrtd",,$W$3&" Y1-FX","Symbol") -> EUR Y1-FX | E22: =RTD("esrtd",,D22,"Bid") -> 160.16 | F22: =RTD("esrtd",,D22,"Ask") -> 163.06 | G22: =RTD("esrtd",,D22,"Last") -> 160.16 | H22: =RTD("esrtd",,D22,"Last Trade Time") -> 44588.6605 | I22: =RTD("esrtd",,D22,"Recent") -> 160.16 | J22: 1.130416 | K22: 1.130746 | L22: 1.130581 | M22: =WORKDAY(WORKDAY(EDATE(M6,12),-1),1) -> 2023-01-27 | N22: 365 | AC22: 11
A23: 546 | C23: Month 18 | D23: =RTD("esrtd",,$W$3&" N8-FX","Symbol") -> EUR N8-FX | E23: =RTD("esrtd",,D23,"Bid") -> 264.69 | F23: =RTD("esrtd",,D23,"Ask") -> 269.69 | G23: =RTD("esrtd",,D23,"Last") -> 264.69 | H23: =RTD("esrtd",,D23,"Last Trade Time") -> 44588.66051 | I23: =RTD("esrtd",,D23,"Recent") -> 264.69 | J23: 1.140869 | K23: 1.141409 | L23: 1.141139 | M23: =WORKDAY(WORKDAY(EDATE(M6,18),-1),1) -> 2023-07-27 | N23: 546 | AC23: 12
A24: 732 | C24: Year 2 | D24: =RTD("esrtd",,$W$3&" Y2-FX","Symbol") -> EUR Y2-FX | E24: =RTD("esrtd",,D24,"Bid") -> 374.5 | F24: =RTD("esrtd",,D24,"Ask") -> 383 | G24: =RTD("esrtd",,D24,"Last") -> 374.5 | H24: =RTD("esrtd",,D24,"Last Trade Time") -> 44588.66001 | I24: =RTD("esrtd",,D24,"Recent") -> 374.5 | J24: 1.15185 | K24: 1.15274 | L24: 1.152295 | M24: =WORKDAY(WORKDAY(EDATE(M6,24),-1),1) -> 2024-01-29 | N24: 732 | AC24: 18
A25: 1096 | C25: Year 3 | D25: =RTD("esrtd",,$W$3&" Y3-FX","Symbol") -> EUR Y3-FX | E25: =RTD("esrtd",,D25,"Bid") -> 575.13 | F25: =RTD("esrtd",,D25,"Ask") -> 595.13 | G25: =RTD("esrtd",,D25,"Last") -> 575.13 | H25: =RTD("esrtd",,D25,"Last Trade Time") -> 44588.66047 | I25: =RTD("esrtd",,D25,"Recent") -> 575.13 | J25: =IFERROR(J$6+(E25*(VLOOKUP($W$3,$Y$4:$AA$19,3,FALSE))),(J24+#REF!)/2) -> 1.171913 | K25: =IFERROR(K$6+(F25*(VLOOKUP($W$3,$Y$4:$AA$19,3,FALSE))),(K24+#REF!)/2) -> 1.173953 | L25: 1.172933 | M25: =WORKDAY(WORKDAY(EDATE(M6,36),-1),1) -> 2025-01-27 | N25: 1096 | AC25: 24
AC26: 36
